[Event "Late-Titled-Tuesday-Blitz-April-23-2024"]
[Site "Chess.com"]
[Date "2024.04.23"]
[Round "7"]
[White "SerGo055"]
[Black "chedimir"]
[Result "1-0"]
[WhiteElo "2610"]
[BlackElo "2455"]
[TimeControl "180+1"]
[EndTime "15:20:48 PDT"]
[Termination "SerGo055 won on time"]

1. d4 {[%clk 0:02:57.7]} 1... Nf6 {[%clk 0:02:59.5]} 2. Nf3 {[%clk 0:02:58]}
2... c5 {[%clk 0:02:59]} 3. c3 {[%clk 0:02:57.8]} 3... e6 {[%clk 0:02:57.3]} 4.
Bf4 {[%clk 0:02:58]} 4... Qb6 {[%clk 0:02:56.1]} 5. Qb3 {[%clk 0:02:57.7]} 5...
Nc6 {[%clk 0:02:50.8]} 6. e3 {[%clk 0:02:57.1]} 6... cxd4 {[%clk 0:02:49.2]} 7.
exd4 {[%clk 0:02:56.9]} 7... Qxb3 {[%clk 0:02:46.4]} 8. axb3 {[%clk 0:02:56.8]}
8... d5 {[%clk 0:02:44.7]} 9. Nbd2 {[%clk 0:02:56.5]} 9... Be7 {[%clk
0:02:42.1]} 10. b4 {[%clk 0:02:56.1]} 10... b6 {[%clk 0:02:29.6]} 11. Bb5 {[%clk
0:02:39.6]} 11... Bd7 {[%clk 0:02:26]} 12. Ba6 {[%clk 0:02:39.9]} 12... Nd8
{[%clk 0:02:08.5]} 13. Ne5 {[%clk 0:02:35.1]} 13... Bd6 {[%clk 0:01:56.9]} 14.
Nxd7 {[%clk 0:02:22.2]} 14... Kxd7 {[%clk 0:01:56.3]} 15. Bb5+ {[%clk
0:02:11.9]} 15... Kc7 {[%clk 0:01:48.2]} 16. Bxd6+ {[%clk 0:02:12.2]} 16... Kxd6
{[%clk 0:01:48.1]} 17. Ra6 {[%clk 0:02:12.5]} 17... Nc6 {[%clk 0:01:44.3]} 18.
Ke2 {[%clk 0:01:55.8]} 18... Nb8 {[%clk 0:01:42]} 19. Ra3 {[%clk 0:01:55.6]}
19... Kc7 {[%clk 0:01:33.4]} 20. Rha1 {[%clk 0:01:54.9]} 20... Kb7 {[%clk
0:01:32.5]} 21. Nf3 {[%clk 0:01:52]} 21... Ne4 {[%clk 0:01:19.1]} 22. Ne5 {[%clk
0:01:49.2]} 22... Nd6 {[%clk 0:01:18.4]} 23. Bd3 {[%clk 0:01:21.6]} 23... f6
{[%clk 0:01:15.6]} 24. Ng4 {[%clk 0:01:21]} 24... b5 {[%clk 0:00:47.5]} 25. Ne3
{[%clk 0:01:09.3]} 25... a6 {[%clk 0:00:39.6]} 26. Nf1 {[%clk 0:01:06]} 26...
Nc4 {[%clk 0:00:35.8]} 27. R3a2 {[%clk 0:01:05.2]} 27... Nc6 {[%clk 0:00:34.7]}
28. Ne3 {[%clk 0:00:57]} 28... Nxe3 {[%clk 0:00:26]} 29. fxe3 {[%clk 0:00:56.8]}
29... e5 {[%clk 0:00:24.6]} 30. Bc2 {[%clk 0:00:41.8]} 30... exd4 {[%clk
0:00:20]} 31. exd4 {[%clk 0:00:41.8]} 31... Rhe8+ {[%clk 0:00:16.8]} 32. Kd2
{[%clk 0:00:41.6]} 32... Re7 {[%clk 0:00:16.3]} 33. Bb3 {[%clk 0:00:24.1]} 33...
Rd7 {[%clk 0:00:14.9]} 34. Re1 {[%clk 0:00:21.3]} 34... a5 {[%clk 0:00:11]} 35.
bxa5 {[%clk 0:00:19.1]} 35... Rxa5 {[%clk 0:00:10.7]} 36. Rxa5 {[%clk
0:00:17.4]} 36... Nxa5 {[%clk 0:00:10.5]} 37. Ba2 {[%clk 0:00:18.3]} 37... Nc4+
{[%clk 0:00:10.5]} 38. Kc2 {[%clk 0:00:18]} 38... Kc7 {[%clk 0:00:10.4]} 39. Re8
{[%clk 0:00:17]} 39... Nd6 {[%clk 0:00:09.8]} 40. Rh8 {[%clk 0:00:15.2]} 40...
Nc4 {[%clk 0:00:08.5]} 41. Bxc4 {[%clk 0:00:14.8]} 41... dxc4 {[%clk 0:00:08.3]}
42. Rxh7 {[%clk 0:00:15.7]} 42... Kd6 {[%clk 0:00:08.5]} 43. Rh5 {[%clk
0:00:14.8]} 43... g5 {[%clk 0:00:07.8]} 44. Rh6 {[%clk 0:00:14.1]} 44... Ke6
{[%clk 0:00:07.4]} 45. h4 {[%clk 0:00:12.5]} 45... g4 {[%clk 0:00:06.6]} 46. Rh5
{[%clk 0:00:12.3]} 46... f5 {[%clk 0:00:06.5]} 47. Kd2 {[%clk 0:00:12.4]} 47...
Rg7 {[%clk 0:00:03.2]} 48. Rh6+ {[%clk 0:00:12.7]} 48... Kd5 {[%clk 0:00:02.9]}
49. Ke3 {[%clk 0:00:13.1]} 49... Re7+ {[%clk 0:00:01.3]} 50. Kf4 {[%clk
0:00:13.4]} 50... Re2 {[%clk 0:00:01.1]} 51. g3 {[%clk 0:00:08.5]} 51... Rf2+
{[%clk 0:00:01.4]} 52. Kg5 {[%clk 0:00:08.8]} 52... Rxb2 {[%clk 0:00:02.3]} 53.
Kxf5 {[%clk 0:00:08.4]} 53... b4 {[%clk 0:00:02.4]} 54. cxb4 {[%clk 0:00:07.8]}
54... c3 {[%clk 0:00:02.6]} 55. Rh8 {[%clk 0:00:06.7]} 55... Kxd4 {[%clk
0:00:03]} 56. Rd8+ {[%clk 0:00:06.6]} 56... Ke3 {[%clk 0:00:03.1]} 57. Rc8
{[%clk 0:00:06.8]} 57... c2 {[%clk 0:00:03.2]} 58. h5 {[%clk 0:00:06.9]} 58...
Kf3 {[%clk 0:00:02.9]} 59. Rc3+ {[%clk 0:00:06.1]} 59... Kg2 {[%clk 0:00:02.8]}
60. h6 {[%clk 0:00:06.6]} 60... Rxb4 {[%clk 0:00:02.8]} 61. Rxc2+ {[%clk
0:00:06.7]} 61... Kxg3 {[%clk 0:00:02.5]} 62. h7 {[%clk 0:00:07.1]} 62... Rb8
{[%clk 0:00:02.6]} 63. Rc3+ {[%clk 0:00:06.8]} 63... Kh4 {[%clk 0:00:01.9]} 64.
Rc4 {[%clk 0:00:07.3]} 64... Rf8+ {[%clk 0:00:01.8]} 65. Kg6 {[%clk 0:00:07.9]}
65... Kh3 {[%clk 0:00:01.9]} 66. Kg7 {[%clk 0:00:07.5]} 66... Rd8 {[%clk
0:00:01.7]} 67. Rf4 {[%clk 0:00:07.9]} 67... g3 {[%clk 0:00:01.8]} 68. Rf8
{[%clk 0:00:07.7]} 68... g2 {[%clk 0:00:01.9]} 69. Rxd8 {[%clk 0:00:05.7]} 1-0

[Event "Late-Titled-Tuesday-Blitz-April-23-2024"]
[Site "Chess.com"]
[Date "2024.04.23"]
[Round "7"]
[White "PepeCuenca"]
[Black "Denmark2015"]
[Result "1/2-1/2"]
[WhiteElo "2809"]
[BlackElo "2616"]
[TimeControl "180+1"]
[EndTime "15:20:49 PDT"]
[Termination "Game drawn by repetition"]

1. d4 {[%clk 0:03:00.9]} 1... e6 {[%clk 0:02:59.8]} 2. Bf4 {[%clk 0:03:01.2]}
2... b6 {[%clk 0:02:47]} 3. Nf3 {[%clk 0:02:44.6]} 3... Bb7 {[%clk 0:02:46.7]}
4. e3 {[%clk 0:02:44.9]} 4... Nf6 {[%clk 0:02:45.3]} 5. Nbd2 {[%clk 0:02:45.1]}
5... Be7 {[%clk 0:02:45.1]} 6. h3 {[%clk 0:02:45.8]} 6... d6 {[%clk 0:02:42.4]}
7. Bh2 {[%clk 0:02:43.1]} 7... Nbd7 {[%clk 0:02:42.6]} 8. Bd3 {[%clk 0:02:42.6]}
8... O-O {[%clk 0:02:39.5]} 9. O-O {[%clk 0:02:42.9]} 9... c5 {[%clk 0:02:26.7]}
10. Re1 {[%clk 0:02:43.2]} 10... Re8 {[%clk 0:02:23.3]} 11. c3 {[%clk
0:02:41.6]} 11... Bf8 {[%clk 0:02:23]} 12. Qc2 {[%clk 0:02:39.2]} 12... Rc8
{[%clk 0:02:21.2]} 13. Rad1 {[%clk 0:02:38.8]} 13... Qc7 {[%clk 0:02:11.9]} 14.
a4 {[%clk 0:02:36.3]} 14... Qb8 {[%clk 0:02:07.4]} 15. Qb1 {[%clk 0:02:33.3]}
15... Qa8 {[%clk 0:02:05.7]} 16. Bf1 {[%clk 0:02:31.3]} 16... Rcd8 {[%clk
0:02:01.1]} 17. e4 {[%clk 0:02:26.2]} 17... e5 {[%clk 0:02:00.8]} 18. d5 {[%clk
0:02:25.1]} 18... g6 {[%clk 0:01:54.8]} 19. Nc4 {[%clk 0:02:24.6]} 19... Ba6
{[%clk 0:01:49.8]} 20. Ne3 {[%clk 0:02:22.2]} 20... Bc8 {[%clk 0:01:42.1]} 21.
Bb5 {[%clk 0:02:17.1]} 21... a6 {[%clk 0:01:40.6]} 22. Bc6 {[%clk 0:02:17.5]}
22... Bb7 {[%clk 0:01:40.8]} 23. Bxb7 {[%clk 0:02:13.5]} 23... Qxb7 {[%clk
0:01:41.7]} 24. b4 {[%clk 0:02:09.1]} 24... Rb8 {[%clk 0:01:38.7]} 25. Nd2
{[%clk 0:02:08]} 25... b5 {[%clk 0:01:38]} 26. a5 {[%clk 0:02:06]} 26... c4
{[%clk 0:01:36.3]} 27. g4 {[%clk 0:02:02]} 27... Bh6 {[%clk 0:01:35.3]} 28. Ndf1
{[%clk 0:01:59.8]} 28... Rf8 {[%clk 0:01:29.7]} 29. h4 {[%clk 0:01:56.8]} 29...
Bf4 {[%clk 0:01:26.4]} 30. f3 {[%clk 0:01:48.7]} 30... Qa7 {[%clk 0:01:15.7]}
31. Kg2 {[%clk 0:01:44.6]} 31... h5 {[%clk 0:01:13]} 32. g5 {[%clk 0:01:34.7]}
32... Nh7 {[%clk 0:00:58]} 33. Bxf4 {[%clk 0:01:14.5]} 33... exf4 {[%clk
0:00:58.2]} 34. Nc2 {[%clk 0:01:15.4]} 34... Ne5 {[%clk 0:00:55.8]} 35. Nd4
{[%clk 0:01:16]} 35... Qd7 {[%clk 0:00:49.4]} 36. Qc1 {[%clk 0:01:07]} 36... Nd3
{[%clk 0:00:48.7]} 37. Rxd3 {[%clk 0:01:07.4]} 37... cxd3 {[%clk 0:00:49.1]} 38.
Qxf4 {[%clk 0:01:07.1]} 38... Rbc8 {[%clk 0:00:47.5]} 39. Nc6 {[%clk 0:01:07.1]}
39... Rxc6 {[%clk 0:00:46.5]} 40. dxc6 {[%clk 0:01:07.3]} 40... Qxc6 {[%clk
0:00:47.2]} 41. Qd2 {[%clk 0:01:06]} 41... Rc8 {[%clk 0:00:30.4]} 42. Rc1 {[%clk
0:01:06.3]} 42... d5 {[%clk 0:00:19.5]} 43. Qxd3 {[%clk 0:01:05.2]} 43... dxe4
{[%clk 0:00:19.9]} 44. Qxe4 {[%clk 0:01:05]} 44... Qd6 {[%clk 0:00:19]} 45. Rc2
{[%clk 0:01:00.4]} 45... Nf8 {[%clk 0:00:19.1]} 46. Ng3 {[%clk 0:00:43.2]} 46...
Ne6 {[%clk 0:00:17.9]} 47. Ne2 {[%clk 0:00:43.7]} 47... Qc7 {[%clk 0:00:15.4]}
48. f4 {[%clk 0:00:39.7]} 48... Re8 {[%clk 0:00:15.2]} 49. f5 {[%clk 0:00:36.4]}
49... Ng7 {[%clk 0:00:15.3]} 50. Qf3 {[%clk 0:00:13.1]} 50... Nxf5 {[%clk
0:00:14.7]} 51. Qh3 {[%clk 0:00:07]} 51... Re3 {[%clk 0:00:14.2]} 52. Qh2 {[%clk
0:00:06.8]} 52... Qc6+ {[%clk 0:00:12]} 53. Kf2 {[%clk 0:00:06]} 53... Qf3+
{[%clk 0:00:12]} 54. Ke1 {[%clk 0:00:06.5]} 54... Ng3 {[%clk 0:00:11.8]} 55. Qf2
{[%clk 0:00:06.2]} 55... Rxe2+ {[%clk 0:00:07.3]} 56. Rxe2 {[%clk 0:00:05.9]}
56... Qxc3+ {[%clk 0:00:07.7]} 57. Kd1 {[%clk 0:00:05]} 57... Nxe2 {[%clk
0:00:05.7]} 58. Qxe2 {[%clk 0:00:05.6]} 58... Qxb4 {[%clk 0:00:06.1]} 59. Qe8+
{[%clk 0:00:05.6]} 59... Qf8 {[%clk 0:00:05.8]} 60. Qc6 {[%clk 0:00:05.1]} 60...
Qd8+ {[%clk 0:00:05.4]} 61. Kc2 {[%clk 0:00:04.4]} 61... Qxa5 {[%clk 0:00:05.5]}
62. Qe8+ {[%clk 0:00:05.1]} 62... Kg7 {[%clk 0:00:05.6]} 63. Qe5+ {[%clk
0:00:05.6]} 63... Kf8 {[%clk 0:00:05]} 64. Qd6+ {[%clk 0:00:04.7]} 64... Ke8
{[%clk 0:00:05.4]} 65. Qb8+ {[%clk 0:00:04.4]} 65... Kd7 {[%clk 0:00:05]} 66.
Qf8 {[%clk 0:00:02.8]} 66... Qc7+ {[%clk 0:00:05.9]} 67. Kd3 {[%clk 0:00:02.7]}
67... Kc6 {[%clk 0:00:06.8]} 68. Qb4 {[%clk 0:00:02.2]} 68... Kb7 {[%clk
0:00:07.4]} 69. Qe4+ {[%clk 0:00:02.1]} 69... Qc6 {[%clk 0:00:07.8]} 70. Qe7+
{[%clk 0:00:02.6]} 70... Qc7 {[%clk 0:00:08.3]} 71. Qe4+ {[%clk 0:00:02.8]}
71... Ka7 {[%clk 0:00:08.8]} 72. Qd4+ {[%clk 0:00:02.8]} 72... Qb6 {[%clk
0:00:09.3]} 73. Qd7+ {[%clk 0:00:03.2]} 73... Qb7 {[%clk 0:00:09.9]} 74. Qd4+
{[%clk 0:00:03.7]} 74... Ka8 {[%clk 0:00:09.4]} 75. Qd8+ {[%clk 0:00:04]} 75...
Qb8 {[%clk 0:00:08.8]} 76. Qd5+ {[%clk 0:00:04.1]} 76... Ka7 {[%clk 0:00:08.8]}
77. Qd4+ {[%clk 0:00:04.2]} 77... Qb6 {[%clk 0:00:09]} 78. Qd7+ {[%clk
0:00:04.4]} 78... Kb8 {[%clk 0:00:09.5]} 79. Qe8+ {[%clk 0:00:03.9]} 79... Kb7
{[%clk 0:00:09.3]} 80. Qxf7+ {[%clk 0:00:04.3]} 80... Kc8 {[%clk 0:00:08]} 81.
Qe8+ {[%clk 0:00:04]} 81... Kb7 {[%clk 0:00:08.5]} 82. Qf7+ {[%clk 0:00:04.2]}
82... Ka8 {[%clk 0:00:08.6]} 83. Qg8+ {[%clk 0:00:03.2]} 83... Ka7 {[%clk
0:00:09]} 84. Qf7+ {[%clk 0:00:03.7]} 84... Ka8 {[%clk 0:00:08.9]} 85. Qg8+
{[%clk 0:00:03.9]} 85... Ka7 {[%clk 0:00:09.4]} 86. Qf7+ {[%clk 0:00:04.5]}
86... Ka8 {[%clk 0:00:08.2]} 1/2-1/2

[Event "Late-Titled-Tuesday-Blitz-April-23-2024"]
[Site "Chess.com"]
[Date "2024.04.23"]
[Round "7"]
[White "nabukatnezarr"]
[Black "masterofpuppets2"]
[Result "1-0"]
[WhiteElo "2624"]
[BlackElo "2479"]
[TimeControl "180+1"]
[EndTime "15:21:00 PDT"]
[Termination "nabukatnezarr won by resignation"]

1. d4 {[%clk 0:03:00.9]} 1... d5 {[%clk 0:03:00.2]} 2. c4 {[%clk 0:03:00.9]}
2... e6 {[%clk 0:03:00.9]} 3. Nc3 {[%clk 0:03:01.4]} 3... c5 {[%clk 0:03:01.5]}
4. e3 {[%clk 0:03:01.2]} 4... Nf6 {[%clk 0:03:01.1]} 5. Nf3 {[%clk 0:03:00.8]}
5... Nc6 {[%clk 0:03:01.7]} 6. a3 {[%clk 0:03:00.5]} 6... a6 {[%clk 0:03:01]} 7.
cxd5 {[%clk 0:02:54.9]} 7... exd5 {[%clk 0:03:01.9]} 8. g3 {[%clk 0:02:55]} 8...
c4 {[%clk 0:03:01]} 9. Bg2 {[%clk 0:02:54.1]} 9... Be7 {[%clk 0:02:51.9]} 10.
O-O {[%clk 0:02:53.5]} 10... O-O {[%clk 0:02:52.6]} 11. Ne5 {[%clk 0:02:53.2]}
11... Be6 {[%clk 0:02:50.8]} 12. Ne2 {[%clk 0:02:42.2]} 12... Nd7 {[%clk
0:02:37.4]} 13. Nf3 {[%clk 0:02:34.4]} 13... b5 {[%clk 0:02:34.7]} 14. Nf4
{[%clk 0:02:34.5]} 14... Nf6 {[%clk 0:02:28.8]} 15. Ne5 {[%clk 0:02:31.2]} 15...
Rc8 {[%clk 0:02:26.7]} 16. Bd2 {[%clk 0:02:07.2]} 16... Bf5 {[%clk 0:02:26.2]}
17. Nxc6 {[%clk 0:01:54.9]} 17... Rxc6 {[%clk 0:02:25.6]} 18. Bb4 {[%clk
0:01:55.6]} 18... Be4 {[%clk 0:02:21.9]} 19. f3 {[%clk 0:01:46.8]} 19... Bg6
{[%clk 0:02:17.7]} 20. Qd2 {[%clk 0:01:44.9]} 20... Re8 {[%clk 0:02:16.2]} 21.
g4 {[%clk 0:01:38.8]} 21... Bd6 {[%clk 0:02:12.7]} 22. Bxd6 {[%clk 0:01:36.3]}
22... Qxd6 {[%clk 0:02:12.2]} 23. Rfe1 {[%clk 0:01:24.3]} 23... Rcc8 {[%clk
0:01:43.5]} 24. h4 {[%clk 0:01:17.8]} 24... h5 {[%clk 0:01:39.1]} 25. g5 {[%clk
0:01:16.6]} 25... Nd7 {[%clk 0:01:36.9]} 26. Bh3 {[%clk 0:01:13.3]} 26... Rcd8
{[%clk 0:01:32.9]} 27. Qb4 {[%clk 0:01:13.2]} 27... Nb6 {[%clk 0:01:31.4]} 28.
Qxd6 {[%clk 0:00:36.6]} 28... Rxd6 {[%clk 0:01:31]} 29. Kf2 {[%clk 0:00:37.5]}
29... Na4 {[%clk 0:01:30]} 30. Re2 {[%clk 0:00:38.1]} 30... Bd3 {[%clk
0:01:21.1]} 31. Rd2 {[%clk 0:00:35.8]} 31... Bg6 {[%clk 0:01:12.7]} 32. Bf1
{[%clk 0:00:35.9]} 32... Red8 {[%clk 0:01:07.6]} 33. Be2 {[%clk 0:00:35.5]}
33... Rb6 {[%clk 0:01:07.3]} 34. Bd1 {[%clk 0:00:35.3]} 34... a5 {[%clk
0:01:06.1]} 35. Rc1 {[%clk 0:00:28.3]} 35... Rb7 {[%clk 0:01:05.3]} 36. Bxa4
{[%clk 0:00:23.4]} 36... bxa4 {[%clk 0:01:06.2]} 37. Kg3 {[%clk 0:00:18]} 37...
Bf5 {[%clk 0:01:05.3]} 38. Nxh5 {[%clk 0:00:14.3]} 38... Rdb8 {[%clk 0:01:04.8]}
39. Nf4 {[%clk 0:00:13.9]} 39... Rb5 {[%clk 0:00:46.2]} 40. Re1 {[%clk
0:00:09.8]} 40... Bd7 {[%clk 0:00:32.6]} 41. Ree2 {[%clk 0:00:09.3]} 41... Kf8
{[%clk 0:00:32.5]} 42. e4 {[%clk 0:00:09.1]} 42... Bc6 {[%clk 0:00:32.1]} 43.
exd5 {[%clk 0:00:08]} 43... Bxd5 {[%clk 0:00:33]} 44. Re5 {[%clk 0:00:07.5]}
44... Rd8 {[%clk 0:00:27.7]} 45. Nxd5 {[%clk 0:00:05.2]} 45... Rbxd5 {[%clk
0:00:27.4]} 46. Rxd5 {[%clk 0:00:06.1]} 46... Rxd5 {[%clk 0:00:28]} 47. Kf4
{[%clk 0:00:07]} 47... Ke7 {[%clk 0:00:28]} 48. Ke4 {[%clk 0:00:07.6]} 48... Kd6
{[%clk 0:00:26.5]} 49. Rc2 {[%clk 0:00:08.1]} 49... Rb5 {[%clk 0:00:26.2]} 50.
Rxc4 {[%clk 0:00:08.6]} 50... Rxb2 {[%clk 0:00:25.5]} 51. Rxa4 {[%clk
0:00:09.3]} 51... Rb5 {[%clk 0:00:25.7]} 52. Rc4 {[%clk 0:00:09.5]} 52... f5+
{[%clk 0:00:24.1]} 53. gxf6 {[%clk 0:00:09.3]} 53... gxf6 {[%clk 0:00:25]} 54.
Rc8 {[%clk 0:00:08.2]} 54... Rh5 {[%clk 0:00:24.8]} 55. Rd8+ {[%clk 0:00:06.8]}
55... Ke7 {[%clk 0:00:25.1]} 56. Ra8 {[%clk 0:00:07]} 56... Rxh4+ {[%clk
0:00:26]} 57. f4 {[%clk 0:00:07.3]} 57... Rh5 {[%clk 0:00:25.2]} 58. d5 {[%clk
0:00:07.5]} 58... Rh1 {[%clk 0:00:23.8]} 59. Rxa5 {[%clk 0:00:07.5]} 59... Re1+
{[%clk 0:00:24.5]} 60. Kf5 {[%clk 0:00:07.9]} 60... Rd1 {[%clk 0:00:23.5]} 61.
a4 {[%clk 0:00:07.5]} 61... Rd4 {[%clk 0:00:21.9]} 62. Ra7+ {[%clk 0:00:06.6]}
62... Kd6 {[%clk 0:00:22]} 63. Ra6+ {[%clk 0:00:06.7]} 63... Kxd5 {[%clk
0:00:20.8]} 64. a5 {[%clk 0:00:06.2]} 64... Ra4 {[%clk 0:00:19.7]} 65. Ra8
{[%clk 0:00:05.5]} 65... Kc6 {[%clk 0:00:18.4]} 66. a6 {[%clk 0:00:05.6]} 66...
Kc7 {[%clk 0:00:16.5]} 67. a7 {[%clk 0:00:04.8]} 67... Kb7 {[%clk 0:00:16.7]}
68. Rf8 {[%clk 0:00:05]} 68... Kxa7 {[%clk 0:00:16.9]} 69. Rxf6 {[%clk
0:00:04.5]} 69... Kb7 {[%clk 0:00:17.5]} 70. Rd6 {[%clk 0:00:04.9]} 70... Kc7
{[%clk 0:00:17.9]} 71. Rd1 {[%clk 0:00:05.2]} 71... Ra6 {[%clk 0:00:18.1]} 72.
Ke5 {[%clk 0:00:05.3]} 72... Ra5+ {[%clk 0:00:18]} 73. Ke6 {[%clk 0:00:05.3]}
73... Ra6+ {[%clk 0:00:17.7]} 74. Ke7 {[%clk 0:00:05.4]} 74... Ra4 {[%clk
0:00:16.9]} 75. f5 {[%clk 0:00:05.4]} 75... Re4+ {[%clk 0:00:16.1]} 76. Kf7
{[%clk 0:00:05.8]} 76... Re3 {[%clk 0:00:15.8]} 77. f6 {[%clk 0:00:06.3]} 77...
Re4 {[%clk 0:00:15.9]} 78. Kf8 {[%clk 0:00:06.7]} 78... Re2 {[%clk 0:00:16.3]}
79. f7 {[%clk 0:00:07.1]} 79... Rf2 {[%clk 0:00:15.7]} 80. Rd4 {[%clk
0:00:05.9]} 80... Kc8 {[%clk 0:00:14.4]} 81. Ke7 {[%clk 0:00:05.8]} 81... Re2+
{[%clk 0:00:14.1]} 82. Kf6 {[%clk 0:00:05.8]} 82... Rf2+ {[%clk 0:00:14.7]} 83.
Ke6 {[%clk 0:00:06.2]} 83... Re2+ {[%clk 0:00:14.5]} 84. Kf5 {[%clk 0:00:06.5]}
84... Rf2+ {[%clk 0:00:13.4]} 85. Rf4 {[%clk 0:00:06.9]} 1-0